bitfinex/quotes_ETHUSD_20251025
["timestamp","ask_amount","ask_price","bid_price","bid_amount"]
[1761390366047,0.4507,3944.3,3944.2,4.56276838]
[1761390366321,0.4507,3944.3,3944.2,7.74476838]
[1761390367501,0.001,3944.3,3944.2,12.14283234]
[1761390367687,0.001,3944.3,3944.2,13.69803234]
[1761390376810,0.001,3944.3,3944.2,12.8981706]
[1761390377047,0.001,3944.3,3944.2,14.54231221]
[1761390377254,0.446,3944.3,3944.2,14.54231221]
[1761390377550,0.001,3944.3,3944.2,14.54231221]
[1761390379248,0.001,3944.3,3944.2,15.44866133]
[1761390380362,0.001,3944.3,3944.2,14.54231221]
[1761390385177,0.001,3944.3,3944.2,14.41591221]
[1761390385469,0.001,3944.3,3944.2,16.7503665]
[1761390385634,0.001,3944.3,3944.2,17.1963665]
[1761390385835,0.001,3944.3,3944.2,15.83688247]
[1761390391050,0.001,3944.3,3944.2,15.44618247]
[1761390397111,0.001,3944.3,3944.2,15.83688247]
[1761390399588,0.001,3944.3,3944.2,15.44618247]
[1761390400315,0.001,3944.3,3944.2,15.83688247]
[1761390400874,0.001,3944.3,3944.2,15.44618247]
[1761390402304,0.001,3944.3,3944.2,15.95306247]
[1761390405499,0.001,3944.3,3944.2,19.79306247]
[1761390417321,0.001,3944.3,3944.2,15.95306247]
[1761390422634,0.001,3944.7,3944.5,4.09037556]
[1761390422797,0.001,3944.7,3944.5,9.86129173]
[1761390422996,0.001,3944.7,3944.5,13.58589395]
[1761390423424,0.001,3944.7,3944.5,14.03779395]
[1761390428339,0.001,3944.7,3944.5,14.54467395]
[1761390428505,0.001,3944.7,3944.5,15.30436253]
[1761390430239,0.001,3944.7,3944.6,4.09031129]
[1761390430414,0.001,3945.0,3944.9,2.5349185]
[1761390430740,0.001,3945.0,3944.9,9.43852072]
[1761390430940,0.001,3945.0,3944.9,14.59192294]
[1761390431240,0.001,3945.0,3944.9,15.9548794]
[1761390432642,0.001,3945.0,3944.9,12.35667718]
[1761390432851,0.001,3945.0,3944.9,14.00081879]
[1761390434344,0.001,3945.0,3944.9,12.63786233]
[1761390434812,0.001,3945.0,3944.9,14.00081879]
[1761390436244,0.001,3945.0,3944.9,14.44401879]
[1761390436813,0.001,3945.0,3944.9,13.08106233]
[1761390438346,0.001,3945.0,3944.9,14.44227981]
[1761390438860,0.001,3945.0,3944.9,15.23665314]
[1761390442068,0.001,3945.1,3945.0,4.5479245]
[1761390442241,0.001,3945.1,3945.0,6.92683164]
[1761390442430,0.001,3945.1,3945.0,6.9014831]
[1761390446234,0.001,3945.1,3945.0,5.93135899]
[1761390446549,0.001,3945.1,3945.0,5.54065899]
[1761390447429,0.001,3945.1,3945.0,5.64209056]
[1761390451137,0.001,3945.1,3945.0,6.27537056]
[1761390451453,0.001,3945.1,3945.0,5.97355224]
[1761390461909,0.001,3945.1,3945.0,9.81355224]
[1761390462681,0.001,3945.1,3945.0,11.71355224]
[1761390463622,0.4444,3945.1,3945.0,11.25568198]
[1761390463834,0.4444,3945.1,3945.0,13.82537041]
[1761390464120,0.4444,3945.1,3945.0,14.49599953]
[1761390464289,0.4444,3945.1,3945.0,13.13445424]
[1761390465591,0.4444,3945.1,3945.0,14.49599953]
[1761390465813,0.4444,3945.1,3945.0,14.94039953]
[1761390465989,0.4444,3945.1,3945.0,13.57885424]
[1761390466317,0.4444,3945.1,3945.0,10.15868382]
[1761390466519,0.4444,3945.1,3945.0,13.13445424]
[1761390468026,0.4444,3945.1,3945.0,9.29445424]
[1761390468606,0.4444,3945.1,3945.0,9.29645424]
[1761390469826,0.4444,3945.1,3945.0,10.20446219]
[1761390470440,0.4444,3945.1,3945.0,9.29645424]
[1761390471141,0.4444,3945.1,3945.0,2.66325424]
[1761390471343,0.4444,3945.1,3945.0,5.84125424]
[1761390471546,0.4444,3945.1,3945.0,2.66325424]
[1761390471841,0.4444,3945.1,3945.0,5.84125424]
[1761390481753,0.001,3945.1,3945.0,6.67907675]
[1761390482376,0.4486,3945.1,3945.0,6.67907675]
[1761390483046,0.4486,3945.1,3945.0,5.84125424]
[1761390495530,0.4486,3945.1,3945.0,2.66325424]
[1761390495723,0.4486,3945.1,3945.0,5.84225424]
[1761390498749,0.001,3945.1,3945.0,5.84225424]
[1761390499958,0.4287,3945.1,3945.0,5.84225424]
[1761390500365,0.4287,3945.1,3945.0,8.44464334]
[1761390500655,0.001,3945.1,3945.0,8.44464334]
[1761390500820,0.001,3945.1,3945.0,12.04158569]
[1761390501020,0.4287,3945.1,3945.0,12.04158569]
[1761390503457,0.4287,3945.1,3945.0,10.34733705]
[1761390510262,0.001,3945.1,3945.0,10.34733705]
[1761390510452,0.001,3945.1,3945.0,15.74172752]
[1761390511032,0.001,3945.1,3945.0,15.84316038]
[1761390512469,0.001,3945.1,3945.0,12.24621803]
[1761390512673,0.001,3945.1,3945.0,13.91463692]
[1761390513050,0.001,3945.1,3945.0,13.2221186]
[1761390516869,0.001,3945.1,3945.0,12.76424834]
[1761390517386,0.001,3945.1,3945.0,9.58524834]
[1761390517871,0.4287,3945.1,3945.0,14.66324834]
[1761390524898,0.4446,3945.1,3945.0,12.99482945]
[1761390525094,0.4446,3945.1,3945.0,12.2469724]
[1761390525403,0.4446,3945.1,3945.0,9.43819659]
[1761390526063,0.4446,3945.1,3945.0,6.26019659]
[1761390526264,0.4446,3945.1,3945.0,5.84125424]
[1761390527821,0.4446,3945.1,3945.0,2.66325424]
[1761390528005,0.4446,3945.1,3945.0,5.84125424]
[1761390530531,0.001,3945.1,3945.0,2.66325424]
[1761390530740,0.001,3945.1,3945.0,0.002]
[1761390530741,0.4446,3945.1,3945.0,0.002]
[1761390530904,0.95033574,3945.1,3945.0,0.002]
[1761390531096,0.5460815,3945.1,3945.0,0.002]
[1761390536615,3.08087149,3945.1,3945.0,0.002]
[1761390540640,3.20727149,3945.1,3945.0,0.002]
[1761390542248,0.6724815,3945.1,3945.0,0.002]
[1761390542449,1.14882506,3945.1,3945.0,0.002]
[1761390542647,3.68361505,3945.1,3945.0,0.002]
[1761390542956,5.74569505,3945.1,3945.0,0.002]
[1761390557380,6.42911916,3945.1,3945.0,0.002]
[1761390559277,5.74569505,3945.1,3945.0,0.002]
[1761390572440,6.65575233,3945.1,3945.0,0.002]
[1761390580350,5.74569505,3945.1,3945.0,0.002]
[1761390580754,12.13569505,3945.1,3945.0,0.002]
[1761390581365,12.60481591,3945.1,3945.0,0.002]
[1761390583327,11.69209505,3945.1,3945.0,0.002]
[1761390585674,12.15289505,3945.1,3945.0,0.002]
[1761390591269,11.69209505,3945.1,3945.0,0.002]
[1761390598977,11.69209505,3945.1,3945.0,0.3927]
[1761390598978,10.70887149,3945.1,3945.0,0.3927]
[1761390599206,10.70887149,3945.1,3945.0,0.002]
[1761390600309,8.1740815,3945.1,3945.0,0.002]
[1761390600507,8.1740815,3945.1,3945.0,3.5727]
[1761390602253,10.70887149,3945.1,3945.0,3.182]
[1761390604237,10.70887149,3945.1,3945.0,0.002]
[1761390604409,6.1178282,3945.1,3945.0,3.181]
[1761390606248,4.31887149,3945.1,3945.0,3.181]
[1761390606539,4.21738999,3945.1,3945.0,3.181]
[1761390612958,5.16446999,3945.1,3945.0,3.181]
[1761390621678,4.72426999,3945.1,3945.0,3.181]
[1761390625846,1.5562,3945.1,3945.0,3.181]
[1761390626046,1.6826,3945.1,3945.0,3.5717]
[1761390627674,1.6826,3945.1,3945.0,3.181]
[1761390633653,1.6826,3945.1,3945.0,3.5717]
[1761390634666,1.6826,3945.1,3945.0,3.181]
[1761390636202,1.6826,3945.1,3945.0,3.5717]
[1761390636203,0.001,3945.1,3945.0,3.5717]
[1761390639069,0.001,3945.1,3945.0,6.7174134]
[1761390641292,0.001,3945.1,3945.0,4.18255916]
[1761390643906,0.001,3945.1,3945.0,0.002]
[1761390644106,0.001,3945.1,3945.0,3.181]
[1761390653117,0.001,3945.1,3945.0,0.002]
[1761390653414,0.001,3945.1,3945.0,3.181]
[1761390655326,0.001,3945.1,3945.0,0.002]
[1761390655483,0.001,3945.1,3945.0,3.181]
[1761390659117,0.001,3945.1,3945.0,5.71585424]
[1761390659423,0.001,3945.1,3945.0,6.55377585]
[1761390661231,0.001,3945.1,3945.0,6.94447585]
[1761390661519,0.001,3945.1,3945.0,6.55377585]
[1761390661823,0.001,3945.1,3945.0,4.01892161]
[1761390661984,0.001,3945.1,3945.0,3.181]
[1761390663131,0.001,3945.1,3945.0,5.71585424]
[1761390667326,0.1274,3945.1,3945.0,5.71585424]
[1761390667524,0.1274,3945.1,3945.0,5.71485424]
[1761390667728,0.1274,3945.1,3945.0,0.002]
[1761390667905,0.1274,3945.1,3945.0,3.18]
[1761390678455,0.5932,3945.1,3945.0,3.18]
[1761390678844,0.91872631,3945.1,3945.0,3.18]
[1761390679454,0.5932,3945.1,3945.0,3.18]
[1761390683155,0.5932,3945.1,3945.0,0.002]
[1761390683361,3.12798999,3945.1,3945.0,3.18]
[1761390685430,3.12798999,3945.1,3945.0,0.002]
[1761390685630,3.70699711,3945.1,3945.0,3.18]
[1761390686151,3.70699711,3945.1,3945.0,0.002]
[1761390686347,3.70699711,3945.1,3945.0,3.18]
[1761390689166,3.70699711,3945.1,3945.0,3.181]
[1761390699758,5.76907711,3945.1,3945.0,0.002]
[1761390701991,4.59693424,3945.0,3944.9,0.002]
[1761390702293,6.97801373,3945.0,3944.9,0.002]
[1761390702786,7.26301373,3945.0,3944.9,0.002]
[1761390721094,7.26401373,3945.0,3944.9,0.002]
[1761390722158,6.82011373,3945.0,3944.9,0.002]
[1761390722714,7.50368271,3945.0,3944.9,0.002]
[1761390726219,6.82011373,3945.0,3944.9,0.002]
[1761390726416,6.53511373,3945.0,3944.9,0.002]
[1761390727149,11.36642191,3945.0,3944.9,0.002]
[1761390728522,11.46792839,3945.0,3944.9,0.002]
[1761390729142,12.38064925,3945.0,3944.9,0.002]
[1761390732236,18.77064925,3945.0,3944.9,0.002]
[1761390733928,16.01201431,3945.0,3944.9,0.002]
[1761390740430,14.64692839,3945.0,3944.9,0.002]
[1761390744235,16.01201431,3945.0,3944.9,0.002]
[1761390744688,14.64692839,3945.0,3944.9,0.002]
[1761390746778,13.85189605,3945.0,3944.9,0.002]
[1761390749883,20.24189605,3945.0,3944.9,0.002]
[1761390753792,4.59712702,3944.7,3944.6,1e-08]
[1761390753951,8.32500286,3944.7,3944.6,1e-08]
[1761390754157,11.95990286,3944.7,3944.6,1e-08]
[1761390754481,12.97317984,3944.7,3944.6,1e-08]
[1761390755154,12.06142557,3944.7,3944.6,1e-08]
[1761390755353,20.00486054,3944.7,3944.6,1e-08]
[1761390755550,21.36994646,3944.7,3944.6,1e-08]
[1761390758997,20.00486054,3944.7,3944.6,1e-08]
[1761390760097,22.67386054,3944.7,3944.6,1e-08]
[1761390769708,8.19885994,3944.3,3944.1,0.002]
[1761390769909,11.37785994,3944.3,3944.1,0.002]
[1761390770080,11.94615994,3944.3,3944.1,0.002]
[1761390770483,12.04769373,3944.3,3944.1,0.002]
[1761390770707,18.43769373,3944.3,3944.1,0.002]
[1761390770908,20.24847322,3944.3,3944.1,0.002]
[1761390771826,21.61583911,3944.3,3944.1,0.002]
[1761390772332,20.24847322,3944.3,3944.1,0.002]
[1761390773237,21.61583911,3944.3,3944.1,0.002]
[1761390775425,20.24847322,3944.3,3944.1,0.002]
[1761390776304,21.61583911,3944.3,3944.1,0.002]
[1761390776624,21.61583911,3944.3,3943.4,0.002]
[1761390776625,4.59783413,3943.6,3943.4,0.002]
[1761390776819,15.39908498,3943.6,3943.4,0.002]
[1761390778034,11.79760914,3943.6,3943.4,0.002]
[1761390778209,12.23950914,3943.6,3943.4,0.002]
[1761390778838,11.79760914,3943.6,3943.4,0.002]
[1761390779010,13.53786856,3943.6,3943.4,0.002]
[1761390779738,14.00396856,3943.6,3943.4,0.002]
[1761390781718,13.53786856,3943.6,3943.4,0.002]
[1761390783613,12.85449355,3943.6,3943.4,0.002]
[1761390784026,13.53782629,3943.6,3943.4,0.002]
[1761390784433,12.85449355,3943.6,3943.4,0.002]
[1761390786648,13.02639355,3943.6,3943.4,0.002]
[1761390790352,15.69539355,3943.6,3943.4,0.002]
[1761390790653,13.02639355,3943.6,3943.4,0.002]
[1761390793237,13.48069355,3943.6,3943.4,0.002]
[1761390794462,13.02639355,3943.6,3943.4,0.002]
[1761390797061,16.62786939,3943.6,3943.4,0.002]
[1761390799761,13.35429355,3943.6,3943.4,0.002]
[1761390800333,12.89999355,3943.6,3943.4,0.002]
[1761390800535,14.26674357,3943.6,3943.4,0.002]
[1761390801576,12.89999355,3943.6,3943.4,0.002]
[1761390807382,12.72809355,3943.6,3943.4,0.002]
[1761390809874,12.85449355,3943.6,3943.4,0.002]
[1761390810594,15.52349355,3943.6,3943.4,0.002]
[1761390810761,12.85449355,3943.6,3943.4,0.002]
[1761390816098,13.30879355,3943.6,3943.4,0.002]
[1761390816702,12.85449355,3943.6,3943.4,0.002]
[1761390816874,13.30879355,3943.6,3943.4,0.002]
[1761390820608,14.67554357,3943.6,3943.4,0.002]
[1761390825599,14.22124357,3943.6,3943.4,0.002]
[1761390826921,14.39314357,3943.6,3943.4,0.002]
[1761390829417,13.02639355,3943.6,3943.4,0.002]
[1761390830120,13.46639355,3943.6,3943.4,0.002]
[1761390834230,13.02639355,3943.6,3943.4,0.002]
[1761390870775,16.63041237,3943.6,3943.4,0.002]
[1761390871277,19.29941237,3943.6,3943.4,0.002]
[1761390871457,16.63041237,3943.6,3943.4,0.002]
[1761390873483,17.07971237,3943.6,3943.4,0.002]
[1761390873678,13.47569355,3943.6,3943.4,0.002]
[1761390877157,3.04289136,3943.2,3943.1,0.002]
[1761390877487,8.20211018,3943.2,3943.1,0.002]
[1761390877688,8.77861018,3943.2,3943.1,0.002]
[1761390877893,8.88016562,3943.2,3943.1,0.002]
[1761390880395,8.43086562,3943.2,3943.1,0.002]
[1761390880601,16.52153138,3943.2,3943.1,0.002]
[1761390894305,16.97703138,3943.2,3943.1,0.002]
[1761390900835,16.52153138,3943.2,3943.1,0.002]
[1761390901017,16.97993138,3943.2,3943.1,0.002]
[1761390902809,16.52153138,3943.2,3943.1,0.002]
[1761390904347,16.97993138,3943.2,3943.1,0.002]
[1761390904760,3.04314864,3942.8,3942.7,0.002]
[1761390905052,15.96164868,3942.8,3942.7,0.002]
[1761390905749,16.06321134,3942.8,3942.7,0.002]
[1761390912774,14.69393012,3942.8,3942.7,0.002]
[1761390912940,16.06321134,3942.8,3942.7,0.002]
[1761390917153,17.40030867,3942.8,3942.7,0.002]
[1761390922253,17.40130867,3942.8,3942.7,0.002]
[1761390923942,16.03202745,3942.8,3942.7,0.002]
[1761390932820,13.79790518,3942.8,3942.7,0.002]
[1761390933006,12.46080785,3942.8,3942.7,0.002]
[1761390933310,11.0909113,3942.8,3942.7,0.002]
[1761390934713,12.46081085,3942.8,3942.7,0.002]
[1761390948047,12.91611085,3942.8,3942.7,0.002]
[1761390949923,11.5462113,3942.8,3942.7,0.002]
[1761390950143,13.93857613,3942.8,3942.7,0.002]
[1761390957353,13.48327613,3942.8,3942.7,0.002]
[1761390972703,13.94097613,3942.8,3942.7,0.002]
[1761390974302,13.48327613,3942.8,3942.7,0.002]
[1761390974502,13.94097613,3942.8,3942.7,0.002]
[1761390984739,13.48327613,3942.8,3942.7,0.002]
[1761390985236,11.0909113,3942.8,3942.7,0.3927]
[1761390986640,11.0909113,3942.8,3942.7,0.002]
[1761390988545,11.0909113,3942.8,3942.7,0.3927]
[1761390988843,11.0909113,3942.8,3942.7,1.18625516]
[1761390989545,11.0909113,3942.8,3942.7,0.79555516]
[1761390990851,4.59841296,3942.7,3942.6,0.002]
[1761390991019,5.18331296,3942.7,3942.6,0.002]
[1761390991749,5.28488723,3942.7,3942.6,0.002]
[1761390992416,8.46288723,3942.7,3942.6,0.002]
[1761390992830,12.0689356,3942.7,3942.6,0.002]
[1761390993029,14.67086623,3942.7,3942.6,0.002]
[1761390993459,11.49286623,3942.7,3942.6,0.002]
[1761390993667,14.67086623,3942.7,3942.6,0.002]
[1761390994660,11.49286623,3942.7,3942.6,0.002]
[1761390994863,14.67086623,3942.7,3942.6,0.002]
[1761390996459,21.06086623,3942.7,3942.6,0.002]
[1761391000681,20.60316623,3942.7,3942.6,0.002]
[1761391005588,21.04646623,3942.7,3942.6,0.002]
[1761391006087,21.04746623,3942.7,3942.6,0.002]
[1761391018923,2.53652597,3942.4,3942.3,1e-08]
[1761391019127,13.74105999,3942.4,3942.3,1e-08]
[1761391019922,13.85145999,3942.4,3942.3,1e-08]
[1761391023232,20.24145999,3942.4,3942.3,1e-08]
[1761391027437,20.66975999,3942.4,3942.3,1e-08]
[1761391028234,20.24145999,3942.4,3942.3,1e-08]
[1761391036542,20.69035999,3942.4,3942.3,1e-08]
[1761391036742,20.24145999,3942.4,3942.3,1e-08]
[1761391040122,11.09900597,3942.4,3942.3,0.39070001]
[1761391040423,11.22620597,3942.4,3942.3,0.39070001]
[1761391042959,11.22720597,3942.4,3942.3,0.39070001]
[1761391045037,11.22720597,3942.4,3942.3,1e-08]
[1761391045375,11.22720597,3942.4,3942.3,0.39070001]
[1761391050177,12.5968192,3942.4,3942.3,0.39070001]
[1761391051661,11.11680597,3942.4,3942.3,0.39070001]
[1761391054611,10.60992597,3942.4,3942.3,0.39070001]
[1761391058317,11.52237974,3942.4,3942.3,0.39070001]
[1761391058910,11.52237974,3942.4,3942.3,1e-08]
[1761391060394,11.52237974,3942.4,3942.3,0.39070001]
[1761391066311,11.52237974,3942.4,3942.3,1e-08]
[1761391068441,11.63277974,3942.4,3942.3,1e-08]
[1761391069538,10.72032597,3942.4,3942.3,1e-08]
[1761391071846,10.72032597,3942.4,3942.3,0.39070001]
[1761391073548,10.60992597,3942.4,3942.3,0.39070001]
[1761391075353,10.60992597,3942.4,3942.3,1e-08]
[1761391075558,10.60992597,3942.4,3942.3,0.39070001]
[1761391078021,10.60992597,3942.4,3942.3,1e-08]
[1761391078757,11.52303029,3942.4,3942.3,1e-08]
[1761391086983,11.63343029,3942.4,3942.3,1e-08]
[1761391088349,12.08733029,3942.4,3942.3,1e-08]
[1761391090353,11.63343029,3942.4,3942.3,1e-08]
[1761391093665,11.63343029,3942.4,3942.3,0.39070001]
[1761391095186,5.24343029,3942.4,3942.3,1e-08]
[1761391095386,5.24343029,3942.4,3942.3,0.39070001]
[1761391095569,1.7938,3942.4,3942.3,0.39070001]
[1761391097095,4.33032597,3942.4,3942.3,0.39070001]
[1761391097495,0.68571477,3942.4,3942.3,0.39070001]
[1761391097695,0.68571477,3942.4,3942.3,0.41606591]
[1761391097998,0.68571477,3942.4,3942.3,0.39070001]
[1761391098202,0.001,3942.4,3942.3,0.39070001]
[1761391098364,0.001,3942.4,3942.3,0.70740182]
[1761391100779,0.001,3942.4,3942.3,3.24399213]
[1761391101401,0.001,3942.4,3942.3,6.42099213]
[1761391102118,0.001,3942.4,3942.3,6.52252695]
[1761391111811,0.001,3942.4,3942.3,6.13182695]
[1761391112497,0.001,3942.4,3942.3,6.52252695]
[1761391128742,0.001,3942.4,3942.3,6.64972695]
[1761391132932,0.001,3942.4,3942.3,6.25802695]
[1761391136658,0.001,3942.4,3942.3,3.08202695]
[1761391136873,0.001,3942.4,3942.3,5.83979032]
[1761391143365,0.001,3942.4,3942.3,6.23049032]
[1761391143786,0.001,3942.4,3942.3,9.54435027]
[1761391143942,0.001,3942.4,3942.3,9.93505027]
[1761391146379,0.001,3942.4,3942.3,9.83352756]
[1761391147174,0.001,3942.4,3942.3,11.08179103]
[1761391149690,0.001,3942.4,3942.3,10.95459103]
[1761391149986,0.001,3942.4,3942.3,11.08179103]
[1761391150194,0.001,3942.4,3942.3,11.18330163]
[1761391153201,0.001,3942.4,3942.3,14.78633887]
[1761391153573,0.001,3942.4,3942.3,11.18330163]
[1761391155803,0.001,3942.4,3942.3,14.78633887]
[1761391155974,0.001,3942.4,3942.3,11.18330163]
[1761391157510,0.001,3942.4,3942.3,10.79260163]
[1761391160225,0.001,3942.4,3942.3,7.61660163]
[1761391160524,0.4478,3942.4,3942.3,10.69109103]
[1761391160727,0.001,3942.4,3942.3,10.69109103]
[1761391165232,0.001,3942.4,3942.3,7.51509103]
[1761391165536,0.001,3942.4,3942.3,10.69109103]
[1761391169361,0.4478,3942.4,3942.3,10.69109103]
[1761391176885,0.4478,3942.4,3942.3,7.08805379]
[1761391177983,0.4478,3942.4,3942.3,5.83979032]
[1761391178158,0.4478,3942.4,3942.3,2.66379032]
[1761391178348,0.4478,3942.4,3942.3,5.83979032]
[1761391179046,0.4478,3942.4,3942.3,2.66379032]
[1761391179252,0.4478,3942.4,3942.3,5.83979032]
[1761391191381,0.001,3942.4,3942.3,5.83979032]
[1761391202620,0.001,3942.4,3942.3,6.67763656]
[1761391203737,0.4368,3942.4,3942.3,5.83979032]
[1761391215181,0.4513,3942.4,3942.3,1e-08]
[1761391215379,0.4513,3942.4,3942.3,3.17600001]
[1761391222031,0.4513,3942.4,3942.3,5.71259032]
[1761391222032,0.001,3942.4,3942.3,5.71259032]
[1761391222196,0.4513,3942.4,3942.3,5.71259032]
[1761391230696,0.4513,3942.4,3942.3,5.83979032]
[1761391230697,0.001,3942.4,3942.3,5.83979032]
[1761391230927,0.001,3942.4,3942.3,6.67763986]
[1761391243737,0.4369,3942.4,3942.3,6.67763986]
[1761391243940,0.4369,3942.4,3942.3,5.83979032]
[1761391248386,0.8738,3942.4,3942.3,5.83979032]
[1761391248545,0.4379,3942.4,3942.3,5.83979032]
[1761391258160,0.001,3942.4,3942.3,5.83979032]
[1761391260198,0.001,3942.4,3942.3,9.44283521]
[1761391260497,0.001,3942.4,3942.3,11.04272924]
[1761391261364,0.001,3942.4,3942.3,10.65202924]
[1761391262381,0.001,3942.4,3942.3,7.04898435]
[1761391262796,0.4531,3942.4,3942.3,7.04898435]
[1761391265398,0.001,3942.4,3942.3,1.33639404]
[1761391265584,0.4531,3942.4,3942.3,3.30320001]
[1761391265784,0.892,3942.4,3942.3,3.30320001]
[1761391266398,0.4531,3942.4,3942.3,3.30320001]
[1761391271037,0.4531,3942.4,3942.3,5.83979032]
[1761391271414,0.001,3942.4,3942.3,5.83979032]
[1761391271601,0.436,3942.4,3942.3,4.50135504]
[1761391271803,0.436,3942.4,3942.3,3.30320001]
[1761391273133,0.436,3942.4,3942.3,0.12720001]
[1761391273338,0.436,3942.4,3942.3,3.30320001]
[1761391273635,0.436,3942.4,3942.3,5.83979032]
[1761391275337,0.001,3942.4,3942.3,5.83979032]
[1761391275545,0.001,3942.4,3942.3,6.67764115]
[1761391275909,0.436,3942.4,3942.3,6.67764115]
[1761391277425,0.436,3942.4,3942.3,4.14105084]
[1761391277605,0.436,3942.4,3942.3,3.30320001]
[1761391285247,0.436,3942.4,3942.3,1e-08]
[1761391285451,0.436,3942.4,3942.3,3.17600001]
[1761391285774,0.5632,3942.4,3942.3,3.17600001]
[1761391286705,0.88597469,3942.4,3942.3,3.17600001]
[1761391286867,4.97770066,3942.4,3942.3,3.17600001]
[1761391287069,5.10490066,3942.4,3942.3,1e-08]
[1761391287271,5.10490066,3942.4,3942.3,3.17600001]
[1761391292710,5.61178066,3942.4,3942.3,3.17600001]
[1761391295732,5.61178066,3942.4,3942.3,1e-08]
[1761391322501,0.1282,3942.4,3942.3,1e-08]
[1761391322704,0.001,3942.4,3942.3,0.39070001]
[1761391322902,0.001,3942.4,3942.3,1e-08]
[1761391327515,0.001,3942.4,3942.3,0.39070001]
[1761391327697,0.001,3942.4,3942.3,1e-08]
[1761391328309,0.001,3942.4,3942.3,0.39070001]
[1761391330018,0.001,3942.4,3942.3,1.02500112]
[1761391332025,0.001,3942.4,3942.3,0.63430112]
[1761391332437,0.001,3942.4,3942.3,1.02500112]
[1761391333218,0.001,3942.4,3942.3,0.63430112]
[1761391333837,0.001,3942.4,3942.3,1.02500112]
[1761391337829,0.001,3942.4,3942.3,0.63430112]
[1761391339446,0.001,3942.4,3942.3,3.58695733]
[1761391339638,0.001,3942.4,3942.3,3.68879143]
[1761391342951,0.001,3942.4,3942.3,3.79031903]
[1761391349772,0.001,3942.4,3942.3,6.57961903]
[1761391350966,0.001,3942.4,3942.3,3.39961903]
[1761391351281,0.001,3942.4,3942.3,6.57861903]
[1761391352476,0.001,3942.4,3942.3,6.96931903]
[1761391360894,0.001,3942.4,3942.3,6.57861903]
[1761391362696,0.001,3942.4,3942.3,6.96931903]
[1761391364579,0.001,3942.4,3942.3,6.57861903]
[1761391364775,0.001,3942.4,3942.3,3.39961903]
[1761391365093,0.001,3942.4,3942.3,6.57761903]
[1761391365460,0.001,3942.4,3942.3,0.86302872]
[1761391365662,0.001,3942.4,3942.3,3.30520001]
[1761391365663,0.4692,3942.4,3942.3,3.30520001]
[1761391365893,0.4692,3942.4,3942.3,0.12720001]
[1761391366204,0.4692,3942.4,3942.3,3.30620001]
[1761391366768,0.4692,3942.4,3942.3,3.17900001]
[1761391366969,0.76985781,3942.4,3942.3,3.17900001]
[1761391371182,0.4692,3942.4,3942.3,3.17900001]
[1761391376118,0.4692,3942.4,3942.3,1e-08]
[1761391376330,0.4692,3942.4,3942.3,5.71659032]
[1761391377812,0.4692,3942.4,3942.3,3.18000001]
[1761391381626,0.001,3942.4,3942.3,3.18000001]
[1761391382330,0.4741,3942.4,3942.3,3.18000001]
[1761391387836,0.78796346,3942.4,3942.3,3.18000001]
[1761391388547,0.78796346,3942.4,3942.3,1e-08]
[1761391388751,0.78796346,3942.4,3942.3,3.17900001]
[1761391389749,0.4741,3942.4,3942.3,3.17900001]
[1761391394680,0.001,3942.4,3942.3,3.17900001]
[1761391395244,0.4629,3942.4,3942.3,1e-08]
[1761391395445,0.4629,3942.4,3942.3,3.17800001]
[1761391395680,0.4629,3942.4,3942.3,1e-08]
[1761391395874,0.4629,3942.4,3942.3,3.17800001]
[1761391397172,0.001,3942.4,3942.3,3.17800001]
[1761391397894,0.4629,3942.4,3942.3,3.17800001]
[1761391403690,0.001,3942.4,3942.3,3.17800001]
[1761391405259,0.4629,3942.4,3942.3,3.17800001]
[1761391408399,2.48638236,3942.4,3942.3,3.17800001]
[1761391408608,0.93118236,3942.4,3942.3,3.17800001]
[1761391410676,0.93118236,3942.4,3942.3,1e-08]
[1761391410876,0.93118236,3942.4,3942.3,3.17800001]
[1761391411076,0.4629,3942.4,3942.3,3.17800001]
[1761391423621,4.55462597,3942.4,3942.3,1e-08]
[1761391423825,4.68182597,3942.4,3942.3,1e-08]
[1761391424213,4.68182597,3942.4,3942.3,3.17700001]
[1761391424402,5.5482267,3942.4,3942.3,3.17700001]
[1761391424602,5.64978524,3942.4,3942.3,3.17700001]
[1761391425090,6.15666524,3942.4,3942.3,3.17700001]
[1761391428954,6.15666524,3942.4,3942.3,1e-08]
[1761391429134,6.15666524,3942.4,3942.3,3.17800001]
[1761391434661,5.69476524,3942.4,3942.3,3.17800001]
[1761391435045,6.12876524,3942.4,3942.3,3.17800001]
[1761391435854,1.78495854,3942.4,3942.3,3.17800001]
[1761391436262,4.32148451,3942.4,3942.3,3.17800001]
[1761391436763,4.75548451,3942.4,3942.3,3.17800001]
[1761391439279,1.78495854,3942.4,3942.3,3.17800001]
[1761391439448,1.78495854,3942.4,3942.3,3.56870001]
[1761391439642,1.78495854,3942.4,3942.3,3.17800001]
[1761391439643,1.5562,3942.4,3942.3,3.17800001]
[1761391441981,4.54802597,3942.4,3942.3,3.17800001]
[1761391442280,4.09272597,3942.4,3942.3,3.17800001]
[1761391442470,1.5562,3942.4,3942.3,3.17800001]
[1761391444886,4.09272597,3942.4,3942.3,3.17800001]
[1761391445184,1.5562,3942.4,3942.3,3.17800001]
[1761391445381,1.5562,3942.4,3942.3,3.56870001]
[1761391446800,0.001,3942.4,3942.3,6.72707047]
[1761391457514,0.001,3942.4,3942.3,3.54907047]
[1761391457713,0.001,3942.4,3942.3,6.33537047]
[1761391458211,0.001,3942.4,3942.3,6.72607047]
[1761391478880,0.001,3942.4,3942.3,10.32846876]
[1761391480643,0.001,3942.4,3942.3,9.93776876]
[1761391485846,0.4392,3942.4,3942.3,9.93776876]
[1761391487284,0.001,3942.4,3942.3,9.93776876]